fUST/lending_fUST_20240726
["ID","MTS","AMOUNT","RATE_DAILY","PERIOD"]
[333191643,1721931063452,-879.44,0.0001452,2]
[333191644,1721931063461,-199.285594,0.0001452,2]
[333191645,1721931063471,-199.285594,0.0001452,2]
[333191646,1721931063480,-500.0,0.0001452,2]
[333191647,1721931063490,-500.0,0.0001452,2]
[333191648,1721931063499,-199.285594,0.0001452,2]
[333191649,1721931063508,-1692.12,0.0001452,2]
[333191650,1721931063517,-199.285594,0.0001452,2]
[333191651,1721931063527,-1068.33,0.0001452,2]
[333191652,1721931063536,-500.0,0.0001452,2]
[333191653,1721931063545,-151.0,0.0001452,2]
[333191654,1721931063554,-502.21410054,0.0001452,2]
[333191655,1721931063562,-500.0,0.0001452,2]
[333191656,1721931063572,-2637.13,0.0001452,2]
[333191657,1721931063581,-500.0,0.0001452,2]
[333191658,1721931063590,-500.0,0.0001452,2]
[333191659,1721931063599,-1293.26,0.0001452,2]
[333191660,1721931063608,-380.41081705,0.0001452,2]
[333191661,1721931063849,-123.76918295,0.0001452,2]
[333191662,1721931063859,-151.0,0.0001452,2]
[333191663,1721931063868,-1650.85,0.0001452,2]
[333191664,1721931063879,-581.01,0.0001452,2]
[333191665,1721931063888,-500.0,0.0001452,2]
[333191666,1721931063897,-500.0,0.0001452,2]
[333191667,1721931063909,-500.0,0.0001452,2]
[333191668,1721931063919,-500.0,0.0001452,2]
[333191669,1721931063929,-1024.93,0.0001452,2]
[333191670,1721931063938,-500.0,0.0001452,2]
[333191671,1721931063948,-2897.63,0.0001452,2]
[333191672,1721931063958,-500.0,0.0001452,2]
[333191673,1721931063968,-500.0,0.0001452,2]
[333191674,1721931063977,-500.0,0.0001452,2]
[333191675,1721931063986,-1463.63,0.0001452,2]
[333191676,1721931063995,-775.42,0.0001452,2]
[333191677,1721931064005,-995.83,0.0001452,2]
[333191678,1721931064014,-500.0,0.0001452,2]
[333191679,1721931064024,-160.0,0.00014654,5]
[333191680,1721931064033,-675.93081705,0.0001469,2]
[333191689,1721932001140,-273.37336231,9.9e-05,2]
[333191690,1721932001162,-26.63418963,0.00012759,2]
[333191759,1721932233290,-273.37336231,9.801e-05,2]
[333191760,1721932233301,-663.51231387,9.999e-05,2]
[333191761,1721932233311,-533.46933228,9.999e-05,2]
[333191762,1721932233321,-244.5,0.00010959,2]
[333191763,1721932233332,-300.0,0.00011753,2]
[333191764,1721932233342,-300.0,0.00011753,2]
[333191765,1721932233352,-14897.04902514,0.00011754,2]
[333191853,1721932237879,-882.528492,0.00011754,2]
[333191854,1721932237894,-718.36760398,0.00011754,2]
[333191855,1721932237976,-8402.05487888,0.00011754,2]
[333191856,1721932237985,-92450.4782204,0.0001275,2]
[333191857,1721932237996,-154.79103211,0.00012759,2]
[333191858,1721932238007,-92477.77983586,0.00012759,2]
[333191859,1721932238018,-154.79103211,0.00012759,2]
[333191861,1721932238027,-154.80649189,0.00012759,2]
[333191863,1721932238037,-420.0,0.00012906,2]
[333191865,1721932238047,-420.0,0.00012929,2]
[333191867,1721932238058,-200.0,0.00013425,2]
[333191869,1721932238068,-432.116692,0.00013588,2]
[333191871,1721932238079,-455.854631,0.00013588,2]
[333191872,1721932238089,-167.069488,0.00013588,2]
[333191873,1721932238099,-736.75996205,0.00013588,2]
[333191874,1721932238110,-1234.40027211,0.00013598,2]
[333191875,1721932238121,-153.0,0.000136,2]
[333191876,1721932238132,-587.9283936,0.000136,2]
[333191877,1721932238144,-151.0,0.00013607,2]
[333191878,1721932238154,-7459.88378545,0.00013655,2]
[333191879,1721932238165,-369801.912882,0.00013688,2]
[333191880,1721932238175,-151.0,0.00013698,2]
[333191881,1721932238185,-204.4422,0.00013698,2]
[333191882,1721932238200,-3520.41,0.00013698,2]
[333191883,1721932238210,-3520.41,0.00013698,2]
[333191884,1721932238219,-3520.41,0.00013698,2]
[333191885,1721932238228,-3520.41,0.00013698,2]
[333191886,1721932238238,-3520.41,0.00013698,2]
[333191887,1721932238248,-3520.41,0.00013698,2]
[333191888,1721932238258,-3520.41,0.00013698,2]
[333191889,1721932238267,-3520.41,0.00013698,2]
[333191890,1721932238279,-3520.41,0.00013698,2]
[333191891,1721932238290,-3520.41,0.00013698,2]
[333191892,1721932238299,-3520.41,0.00013698,2]
[333191893,1721932238309,-3520.41,0.00013698,2]
[333191894,1721932238318,-3520.41,0.00013698,2]
[333191895,1721932238327,-3520.41,0.00013698,2]
[333191896,1721932238337,-3520.41,0.00013698,2]
[333191897,1721932238346,-3520.41,0.00013698,2]
[333191898,1721932238355,-3520.41,0.00013698,2]
[333191899,1721932238365,-3520.41,0.00013698,2]
[333191900,1721932238374,-3520.41,0.00013698,2]
[333191901,1721932238383,-3520.41,0.00013698,2]
[333191902,1721932238393,-3520.41,0.00013698,2]
[333191903,1721932238402,-3520.41,0.00013698,2]
[333191904,1721932238411,-3520.41,0.00013698,2]
[333191905,1721932238421,-3520.61,0.00013698,2]
[333191906,1721932238430,-500.0,0.00013698,2]
[333191907,1721932238441,-460.24857475,0.00013698,2]
[333191908,1721932238450,-500.0,0.00013698,2]
[333191909,1721932238460,-500.0,0.00013698,2]
[333191910,1721932238470,-585.68,0.00013698,2]
[333191911,1721932238479,-500.0,0.00013698,2]
[333191912,1721932238489,-500.0,0.00013698,2]
[333191913,1721932238499,-500.0,0.00013698,2]
[333191914,1721932238508,-500.0,0.00013698,2]
[333191915,1721932238518,-500.0,0.00013698,2]
[333191916,1721932238527,-565.93,0.00013698,2]
[333191917,1721932238537,-516.34041717,0.00013698,2]
[333191918,1721932238547,-672.46,0.00013698,2]
[333191919,1721932238556,-509.44817324,0.00013698,2]
[333191920,1721932238565,-730.6,0.00013698,2]
[333191921,1721932238575,-500.0,0.00013698,2]
[333191922,1721932238585,-500.0,0.00013698,2]
[333191923,1721932238594,-514.36791962,0.00013698,2]
[333191924,1721932238604,-500.0,0.00013698,2]
[333191925,1721932238614,-500.0,0.00013698,2]
[333191926,1721932238624,-500.0,0.00013698,2]
[333191927,1721932238633,-500.0,0.00013698,2]
[333191928,1721932238643,-551.33,0.00013698,2]
[333191929,1721932238653,-500.0,0.00013698,2]
[333191930,1721932238662,-500.0,0.00013698,2]
[333191931,1721932238672,-1095.31,0.00013698,2]
[333191932,1721932238681,-500.0,0.00013698,2]
[333191933,1721932238690,-500.0,0.00013698,2]
[333191934,1721932238700,-500.0,0.00013698,2]
[333191935,1721932238710,-415.21719491,0.00013698,2]
[333191936,1721932238719,-500.0,0.00013698,2]
[333191937,1721932238729,-505.75320243,0.00013698,2]
[333191938,1721932238738,-500.0,0.00013698,2]
[333191939,1721932238748,-502.63022932,0.00013698,2]
[333191940,1721932238758,-500.0,0.00013698,2]
[333191941,1721932238768,-500.0,0.00013698,2]
[333191942,1721932238777,-318.30549013,0.00013698,2]
[333191943,1721932238787,-618.34450159,0.00013698,2]
[333191944,1721932238797,-500.0,0.00013698,2]
[333191945,1721932238807,-500.0,0.00013698,2]
[333191946,1721932238817,-500.0,0.00013698,2]
[333191947,1721932238826,-500.0,0.00013698,2]
[333191948,1721932238836,-500.0,0.00013698,2]
[333191949,1721932238845,-500.0,0.00013698,2]
[333191950,1721932238855,-500.0,0.00013698,2]
[333191951,1721932238864,-500.0,0.00013698,2]
[333191952,1721932238873,-500.0,0.00013698,2]
[333191953,1721932238885,-500.0,0.00013698,2]
[333191954,1721932238896,-413.10991431,0.00013698,2]
[333191955,1721932238907,-500.0,0.00013698,2]
[333191956,1721932238919,-500.0,0.00013698,2]
[333191957,1721932238930,-1209.31,0.00013698,2]
[333191958,1721932238941,-778.69,0.00013698,2]
[333191959,1721932238951,-500.0,0.00013698,2]
[333191960,1721932238963,-500.0,0.00013698,2]
[333191961,1721932238973,-500.0,0.00013698,2]
[333191962,1721932238984,-591.87564627,0.00013698,2]
[333191963,1721932238996,-500.0,0.00013698,2]
[333191964,1721932239008,-500.0,0.00013698,2]
[333191965,1721932239019,-500.0,0.00013698,2]
[333191966,1721932239030,-500.0,0.00013698,2]
[333191967,1721932239040,-500.0,0.00013698,2]
[333191968,1721932239049,-500.0,0.00013698,2]
[333191969,1721932239059,-786.05,0.00013698,2]
[333191970,1721932239068,-871.4,0.00013698,2]
[333191971,1721932239078,-500.0,0.00013698,2]
[333191972,1721932239088,-500.0,0.00013698,2]
[333191973,1721932239097,-500.0,0.00013698,2]
[333191974,1721932239106,-500.0,0.00013698,2]
[333191975,1721932239116,-500.0,0.00013698,2]
[333191976,1721932239125,-510.55045096,0.00013698,2]
[333191977,1721932239135,-500.0,0.00013698,2]
[333191978,1721932239144,-500.0,0.00013698,2]
[333191979,1721932239154,-500.0,0.00013698,2]
[333191980,1721932239163,-500.0,0.00013698,2]
[333191981,1721932239173,-1184.69,0.00013698,2]
[333191982,1721932239182,-300.62457909,0.00013698,2]
[333191983,1721932239195,-500.0,0.00013698,2]
[333191984,1721932239208,-500.0,0.00013698,2]
[333191985,1721932239218,-500.0,0.00013698,2]
[333191986,1721932239227,-500.0,0.00013698,2]
[333191988,1721932239237,-325.25098328,0.00013698,2]
[333191990,1721932239247,-500.0,0.00013698,2]
[333191991,1721932239257,-500.0,0.00013698,2]
[333191992,1721932239267,-500.0,0.00013698,2]
[333191993,1721932239278,-500.0,0.00013698,2]
[333191994,1721932239290,-2092.76,0.00013698,2]
[333191995,1721932239300,-518.48427505,0.00013698,2]
[333191996,1721932239310,-500.0,0.00013698,2]
[333191997,1721932239320,-500.0,0.00013698,2]
[333191998,1721932239330,-500.0,0.00013698,2]
[333191999,1721932239339,-500.0,0.00013698,2]
[333192000,1721932239350,-500.0,0.00013698,2]
[333192001,1721932239360,-500.0,0.00013698,2]
[333192002,1721932239371,-500.0,0.00013698,2]
[333192003,1721932239382,-500.0,0.00013698,2]
[333192004,1721932239392,-500.0,0.00013698,2]
[333192005,1721932239402,-500.0,0.00013698,2]
[333192006,1721932239412,-500.0,0.00013698,2]
[333192007,1721932239423,-500.0,0.00013698,2]
[333192008,1721932239433,-2361.48963333,0.00013698,2]
[333192009,1721932239448,-1331.71,0.00013698,2]
[333192010,1721932239458,-500.0,0.00013698,2]
[333192011,1721932239468,-500.0,0.00013698,2]
[333192012,1721932239477,-500.0,0.00013698,2]
[333192013,1721932239487,-500.0,0.00013698,2]
[333192014,1721932239497,-503.68402711,0.00013698,2]
[333192015,1721932239507,-500.0,0.00013698,2]
[333192017,1721932239517,-570.44,0.00013698,2]
[333192018,1721932239526,-500.0,0.00013698,2]
[333192020,1721932239536,-630.85090901,0.00013698,2]
[333192021,1721932239546,-500.0,0.00013698,2]
[333192022,1721932239556,-500.0,0.00013698,2]
[333192023,1721932239566,-500.0,0.00013698,2]
[333192024,1721932239575,-500.0,0.00013698,2]
[333192025,1721932239585,-500.0,0.00013698,2]
[333192026,1721932239594,-841.82,0.00013698,2]
[333192028,1721932239603,-500.0,0.00013698,2]
[333192030,1721932239613,-500.0,0.00013698,2]
[333192032,1721932239622,-502.11194935,0.00013698,2]
[333192034,1721932239631,-538.74851506,0.00013698,2]
[333192036,1721932239641,-646.51,0.00013698,2]
[333192038,1721932239650,-500.0,0.00013698,2]
[333192039,1721932239660,-935.22,0.00013698,2]
[333192041,1721932239669,-500.0,0.00013698,2]
[333192043,1721932239679,-500.0,0.00013698,2]
[333192045,1721932239689,-500.0,0.00013698,2]
[333192048,1721932239701,-610.0,0.00013698,2]
[333192050,1721932239711,-1213.76,0.00013698,2]
[333192052,1721932239721,-500.0,0.00013698,2]
[333192054,1721932239730,-581.19,0.00013698,2]
[333192056,1721932239739,-1150.51,0.00013698,2]
[333192058,1721932239748,-500.0,0.00013698,2]
[333192060,1721932239758,-500.0,0.00013698,2]
[333192061,1721932239769,-500.0,0.00013698,2]
[333192062,1721932239779,-500.0,0.00013698,2]
[333192063,1721932239789,-506.25486992,0.00013698,2]
[333192064,1721932239799,-500.0,0.00013698,2]
[333192065,1721932239809,-504.50703315,0.00013698,2]
[333192066,1721932239820,-500.0,0.00013698,2]
[333192067,1721932239831,-500.0,0.00013698,2]
[333192068,1721932239840,-500.0,0.00013698,2]
[333192069,1721932239851,-258.05509899,0.00013698,2]
[333192070,1721932239860,-500.0,0.00013698,2]
[333192072,1721932239871,-772.62,0.00013698,2]
[333192074,1721932239881,-500.0,0.00013698,2]
[333192076,1721932239891,-1147.1,0.00013698,2]
[333192077,1721932239901,-500.0,0.00013698,2]
[333192078,1721932239911,-1301.14,0.00013698,2]
[333192079,1721932239921,-500.0,0.00013698,2]
[333192080,1721932239931,-500.0,0.00013698,2]
[333192081,1721932239943,-500.0,0.00013698,2]
[333192082,1721932239952,-500.0,0.00013698,2]
[333192083,1721932239961,-736.76,0.00013698,2]
[333192084,1721932239971,-500.0,0.00013698,2]
[333192085,1721932239980,-500.0,0.00013698,2]
[333192086,1721932239993,-500.0,0.00013698,2]
[333192087,1721932240003,-500.0,0.00013698,2]
[333192089,1721932240012,-500.0,0.00013698,2]
[333192091,1721932240023,-660.58,0.00013698,2]
[333192092,1721932240032,-500.0,0.00013698,2]
[333192094,1721932240042,-220.88020243,0.00013698,2]
[333192095,1721932240051,-500.0,0.00013698,2]
[333192096,1721932240063,-555.73,0.00013698,2]
[333192097,1721932240241,-432.67944057,0.00013698,2]
[333192098,1721932240251,-500.0,0.00013698,2]
[333192099,1721932240261,-500.0,0.00013698,2]
[333192100,1721932240271,-500.0,0.00013698,2]
[333192101,1721932240282,-500.0,0.00013698,2]
[333192102,1721932240293,-1061.04,0.00013698,2]
[333192103,1721932240303,-1089.93,0.00013698,2]
[333192104,1721932240313,-500.0,0.00013698,2]
[333192105,1721932240323,-500.0,0.00013698,2]
[333192106,1721932240334,-500.0,0.00013698,2]
[333192107,1721932240343,-725.61,0.00013698,2]
[333192108,1721932240353,-501.8751649,0.00013698,2]
[333192109,1721932240363,-500.0,0.00013698,2]
[333192110,1721932240374,-500.0,0.00013698,2]
[333192111,1721932240383,-500.0,0.00013698,2]
[333192112,1721932240397,-500.0,0.00013698,2]
[333192113,1721932240407,-417.77535033,0.00013698,2]
[333192114,1721932240417,-500.0,0.00013698,2]
[333192115,1721932240426,-500.0,0.00013698,2]
[333192116,1721932240435,-500.0,0.00013698,2]
[333192117,1721932240448,-500.0,0.00013698,2]
[333192118,1721932240457,-500.0,0.00013698,2]
[333192119,1721932240467,-984.29,0.00013698,2]
[333192120,1721932240477,-500.0,0.00013698,2]
[333192121,1721932240488,-500.0,0.00013698,2]
[333192122,1721932240497,-330.83450562,0.00013698,2]
[333192123,1721932240506,-500.0,0.00013698,2]
[333192124,1721932240515,-810.81,0.00013698,2]
[333192125,1721932240528,-1061.88,0.00013698,2]
[333192126,1721932240537,-500.0,0.00013698,2]
[333192127,1721932240546,-500.0,0.00013698,2]
[333192128,1721932240557,-748.53,0.00013698,2]
[333192129,1721932240566,-500.0,0.00013698,2]
[333192130,1721932240576,-500.0,0.00013698,2]
[333192131,1721932240585,-583.9,0.00013698,2]
[333192132,1721932240596,-500.0,0.00013698,2]
[333192133,1721932240606,-1025.05,0.00013698,2]
[333192134,1721932240615,-500.0,0.00013698,2]
[333192135,1721932240625,-500.0,0.00013698,2]
[333192136,1721932240634,-500.0,0.00013698,2]
[333192137,1721932240644,-500.0,0.00013698,2]
[333192138,1721932240653,-500.0,0.00013698,2]
[333192139,1721932240663,-500.0,0.00013698,2]
[333192140,1721932240674,-500.0,0.00013698,2]
[333192141,1721932240683,-500.0,0.00013698,2]
[333192142,1721932240696,-500.0,0.00013698,2]
[333192143,1721932240706,-500.0,0.00013698,2]
[333192144,1721932240715,-873.61,0.00013698,2]
[333192145,1721932240724,-500.0,0.00013698,2]
[333192146,1721932240735,-500.0,0.00013698,2]
[333192147,1721932240746,-500.0,0.00013698,2]
[333192148,1721932240757,-500.0,0.00013698,2]
[333192149,1721932240767,-568.25,0.00013698,2]
[333192150,1721932240777,-500.0,0.00013698,2]
[333192151,1721932240787,-500.0,0.00013698,2]
[333192152,1721932240797,-577.62,0.00013698,2]
[333192153,1721932240806,-500.0,0.00013698,2]
[333192154,1721932240816,-1016.64,0.00013698,2]
[333192155,1721932240826,-762.91,0.00013698,2]
[333192156,1721932240835,-500.0,0.00013698,2]
[333192157,1721932240845,-500.0,0.00013698,2]
[333192158,1721932240855,-500.0,0.00013698,2]
[333192159,1721932240864,-500.0,0.00013698,2]
[333192160,1721932240874,-500.0,0.00013698,2]
[333192161,1721932240883,-500.0,0.00013698,2]
[333192162,1721932240893,-500.0,0.00013698,2]
[333192163,1721932240903,-515.51728115,0.00013698,2]
[333192164,1721932240912,-512.70080887,0.00013698,2]
[333192165,1721932240922,-583.71,0.00013698,2]
[333192166,1721932240932,-500.0,0.00013698,2]
[333192167,1721932240944,-500.0,0.00013698,2]
[333192168,1721932240955,-567.37511332,0.00013698,2]
[333192169,1721932240967,-500.0,0.00013698,2]
[333192170,1721932240976,-943.23,0.00013698,2]
[333192171,1721932240986,-500.0,0.00013698,2]
[333192172,1721932240995,-1189.41,0.00013698,2]
[333192173,1721932241006,-500.0,0.00013698,2]
[333192174,1721932241015,-500.0,0.00013698,2]
[333192175,1721932241024,-500.0,0.00013698,2]
[333192176,1721932241034,-208.9928034,0.00013698,2]
[333192177,1721932241044,-500.0,0.00013698,2]
[333192178,1721932241054,-500.0,0.00013698,2]
[333192179,1721932241064,-500.0,0.00013698,2]
[333192180,1721932241074,-500.0,0.00013698,2]
[333192181,1721932241083,-500.0,0.00013698,2]
[333192182,1721932241093,-500.0,0.00013698,2]
[333192183,1721932241102,-2677.53,0.00013698,2]
[333192184,1721932241113,-500.0,0.00013698,2]
[333192185,1721932241122,-500.0,0.00013698,2]
[333192186,1721932241132,-500.0,0.00013698,2]
[333192187,1721932241142,-500.0,0.00013698,2]
[333192188,1721932241151,-500.0,0.00013698,2]
[333192189,1721932241161,-1535.05,0.00013698,2]
[333192190,1721932241171,-558.01,0.00013698,2]
[333192191,1721932241181,-500.0,0.00013698,2]
[333192192,1721932241195,-500.0,0.00013698,2]
[333192193,1721932241211,-500.0,0.00013698,2]
[333192194,1721932241221,-500.0,0.00013698,2]
[333192195,1721932241231,-500.0,0.00013698,2]
[333192196,1721932241242,-500.0,0.00013698,2]
[333192197,1721932241251,-500.0,0.00013698,2]
[333192198,1721932241261,-500.0,0.00013698,2]
[333192199,1721932241270,-500.0,0.00013698,2]
[333192200,1721932241283,-519.45725091,0.00013698,2]
[333192201,1721932241293,-500.0,0.00013698,2]
[333192202,1721932241303,-500.0,0.00013698,2]
[333192203,1721932241312,-500.0,0.00013698,2]
[333192204,1721932241322,-510.23168237,0.00013698,2]
[333192205,1721932241333,-803.44,0.00013698,2]
[333192206,1721932241342,-500.0,0.00013698,2]
[333192207,1721932241352,-500.0,0.00013698,2]
[333192208,1721932241362,-763.15,0.00013698,2]
[333192209,1721932241371,-500.0,0.00013698,2]
[333192210,1721932241382,-500.0,0.00013698,2]
[333192211,1721932241392,-500.0,0.00013698,2]
[333192212,1721932241401,-2047.62,0.00013698,2]
[333192213,1721932241411,-641.39706208,0.00013698,2]
[333192214,1721932241421,-500.0,0.00013698,2]
[333192215,1721932241431,-500.0,0.00013698,2]
[333192216,1721932241444,-930.7,0.00013698,2]
[333192217,1721932241455,-500.0,0.00013698,2]
[333192218,1721932241465,-500.0,0.00013698,2]
[333192219,1721932241475,-500.0,0.00013698,2]
[333192220,1721932241487,-500.0,0.00013698,2]
[333192221,1721932241497,-552.00324419,0.00013698,2]
[333192222,1721932241506,-500.0,0.00013698,2]
[333192223,1721932241516,-506.22981944,0.00013698,2]
[333192224,1721932241525,-500.0,0.00013698,2]
[333192225,1721932241536,-500.0,0.00013698,2]
[333192226,1721932241546,-1645.24,0.00013698,2]
[333192227,1721932241556,-500.0,0.00013698,2]
[333192228,1721932241566,-1866.43,0.00013698,2]
[333192229,1721932241575,-1767.75,0.00013698,2]
[333192230,1721932241586,-500.0,0.00013698,2]
[333192231,1721932241599,-500.0,0.00013698,2]
[333192232,1721932241609,-500.0,0.00013698,2]
[333192233,1721932241619,-500.0,0.00013698,2]
[333192234,1721932241629,-500.0,0.00013698,2]
[333192235,1721932241639,-1410.46,0.00013698,2]
[333192236,1721932241649,-927.64,0.00013698,2]
[333192237,1721932241660,-500.0,0.00013698,2]
[333192238,1721932241669,-500.0,0.00013698,2]
[333192239,1721932241679,-513.70089173,0.00013698,2]
[333192240,1721932241688,-500.0,0.00013698,2]
[333192241,1721932241699,-500.0,0.00013698,2]
[333192242,1721932241709,-522.53197781,0.00013698,2]
[333192243,1721932241719,-500.0,0.00013698,2]
[333192244,1721932241729,-2490.27,0.00013698,2]
[333192245,1721932241740,-500.0,0.00013698,2]
[333192246,1721932241752,-2655.16,0.00013698,2]
[333192247,1721932241763,-500.0,0.00013698,2]
[333192248,1721932241775,-179.67497772,0.00013698,2]
[333192249,1721932241786,-500.0,0.00013698,2]
[333192250,1721932241797,-647.76,0.00013698,2]
[333192251,1721932241809,-508.29011222,0.00013698,2]
[333192252,1721932241819,-500.0,0.00013698,2]
[333192253,1721932241829,-500.0,0.00013698,2]
[333192254,1721932241840,-500.0,0.00013698,2]
[333192255,1721932241850,-500.0,0.00013698,2]
[333192256,1721932241861,-9389.14,0.00013698,2]
[333192257,1721932241871,-500.0,0.00013698,2]
[333192258,1721932241881,-503.28316287,0.00013698,2]
[333192259,1721932241891,-500.0,0.00013698,2]
[333192260,1721932241902,-644.63839208,0.00013698,2]
[333192261,1721932241915,-500.0,0.00013698,2]
[333192262,1721932241925,-500.0,0.00013698,2]
[333192263,1721932241936,-922.75,0.00013698,2]
[333192264,1721932241948,-3968.3,0.00013698,2]
[333192265,1721932241958,-500.0,0.00013698,2]
[333192266,1721932241969,-500.0,0.00013698,2]
[333192267,1721932241981,-500.0,0.00013698,2]
[333192268,1721932241991,-502.67366809,0.00013698,2]
[333192269,1721932242001,-1516.91,0.00013698,2]
[333192270,1721932242010,-500.0,0.00013698,2]
[333192271,1721932242021,-1773.9,0.00013698,2]
[333192272,1721932242031,-500.0,0.00013698,2]
[333192273,1721932242041,-500.0,0.00013698,2]
[333192274,1721932242051,-500.0,0.00013698,2]
[333192275,1721932242063,-500.0,0.00013698,2]
[333192276,1721932242073,-1577.63,0.00013698,2]
[333192277,1721932242084,-500.0,0.00013698,2]
[333192278,1721932242094,-542.46,0.00013698,2]
[333192279,1721932242104,-500.0,0.00013698,2]
[333192280,1721932242114,-730.35,0.00013698,2]
[333192281,1721932242124,-506.01164318,0.00013698,2]
[333192282,1721932242136,-799.53,0.00013698,2]
[333192283,1721932242146,-500.0,0.00013698,2]
[333192284,1721932242157,-500.0,0.00013698,2]
[333192285,1721932242168,-500.0,0.00013698,2]
[333192286,1721932242178,-500.0,0.00013698,2]
[333192287,1721932242189,-1282.3,0.00013698,2]
[333192288,1721932242205,-6342.4,0.00013698,2]
[333192289,1721932242214,-500.0,0.00013698,2]
[333192290,1721932242223,-500.0,0.00013698,2]
[333192291,1721932242234,-952.77,0.00013698,2]
[333192292,1721932242245,-500.0,0.00013698,2]
[333192293,1721932242256,-500.0,0.00013698,2]
[333192294,1721932242266,-500.0,0.00013698,2]
[333192295,1721932242279,-500.0,0.00013698,2]
[333192296,1721932242291,-273.91436274,0.00013698,2]
[333192297,1721932242303,-500.0,0.00013698,2]
[333192298,1721932242312,-500.0,0.00013698,2]
[333192299,1721932242321,-1021.45,0.00013698,2]
[333192300,1721932242331,-500.0,0.00013698,2]
[333192302,1721932242341,-500.0,0.00013698,2]
[333192303,1721932242351,-500.0,0.00013698,2]
[333192304,1721932242362,-615.14,0.00013698,2]
[333192305,1721932242372,-1550.44,0.00013698,2]
[333192306,1721932242384,-500.0,0.00013698,2]
[333192307,1721932242395,-517.57189651,0.00013698,2]
[333192308,1721932242405,-597.37,0.00013698,2]
[333192309,1721932242415,-500.0,0.00013698,2]
[333192310,1721932242427,-500.0,0.00013698,2]
[333192311,1721932242438,-820.45,0.00013698,2]
[333192312,1721932242451,-500.0,0.00013698,2]
[333192313,1721932242460,-4616.0,0.00013698,2]
[333192314,1721932242469,-500.0,0.00013698,2]
[333192315,1721932242478,-7952.53,0.00013698,2]
[333192316,1721932242489,-500.0,0.00013698,2]
[333192317,1721932242498,-500.0,0.00013698,2]
[333192318,1721932242508,-500.0,0.00013698,2]
[333192319,1721932242518,-841.85,0.00013698,2]
[333192320,1721932242528,-500.0,0.00013698,2]
[333192321,1721932242537,-500.0,0.00013698,2]
[333192322,1721932242547,-500.0,0.00013698,2]
[333192323,1721932242557,-655.68,0.00013698,2]
[333192324,1721932242567,-500.0,0.00013698,2]
[333192325,1721932242576,-500.0,0.00013698,2]
[333192326,1721932242585,-1449.04,0.00013698,2]
[333192327,1721932242595,-1233.01,0.00013698,2]
[333192328,1721932242605,-500.0,0.00013698,2]
[333192329,1721932242615,-504.29706706,0.00013698,2]
[333192330,1721932242624,-1303.4,0.00013698,2]
[333192331,1721932242634,-500.0,0.00013698,2]
[333192333,1721932242644,-500.0,0.00013698,2]
[333192335,1721932242654,-558.36,0.00013698,2]
[333192337,1721932242665,-909.28,0.00013698,2]
[333192339,1721932242675,-508.83262433,0.00013698,2]
[333192341,1721932242684,-500.0,0.00013698,2]
[333192342,1721932242695,-501.49133993,0.00013698,2]
[333192344,1721932242704,-500.0,0.00013698,2]
[333192345,1721932242714,-745.63,0.00013698,2]